bitfinex/quotes_SOLUSD_20250718
["timestamp","ask_amount","ask_price","bid_price","bid_amount"]
[1752852721929,0.03,176.54,176.51,11.87035474]
[1752852722538,0.03,176.54,176.51,12.53035474]
[1752852722727,0.03,176.54,176.51,11.87035474]
[1752852722910,12.62035474,176.54,176.5,10.0]
[1752852723114,11.90035474,176.54,176.5,10.0]
[1752852723337,0.03,176.54,176.51,0.66]
[1752852723640,5.69443865,176.54,176.5,11.87035474]
[1752852723843,11.87035474,176.52,176.47,21.87035474]
[1752852724145,11.87035474,176.52,176.45,0.66]
[1752852724146,11.87035474,176.51,176.46,21.87035474]
[1752852724347,28.65503871,176.5,176.46,10.0]
[1752852724546,11.87035474,176.49,176.46,10.0]
[1752852724746,11.87035474,176.5,176.47,10.0]
[1752852725066,20.57553528,176.54,176.47,10.0]
[1752852725348,20.57553528,176.54,176.43,3.0]
[1752852725349,5.69443865,176.54,176.5,21.87035474]
[1752852725537,17.56479339,176.54,176.5,10.0]
[1752852725744,5.69443865,176.54,176.5,12.53035474]
[1752852725937,5.69443865,176.54,176.5,22.53035474]
[1752852726837,16.78468397,176.53,176.48,10.0]
[1752852727150,28.65503871,176.53,176.49,0.66]
[1752852727349,16.78468397,176.53,176.48,10.0]
[1752852727559,11.87035474,176.51,176.47,10.0]
[1752852727763,5.66572237,176.5,176.47,10.0]
[1752852727928,5.66572237,176.5,176.47,10.66]
[1752852728127,17.53607711,176.5,176.46,10.0]
[1752852728528,11.87035474,176.48,176.43,24.87035474]
[1752852728728,11.87035474,176.48,176.46,10.0]
[1752852729048,5.66572237,176.5,176.47,0.66]
[1752852729256,37.87035474,176.52,176.47,11.87035474]
[1752852729547,43.53517157,176.53,176.48,22.53035474]
[1752852729846,31.66481683,176.53,176.5,11.87035474]
[1752852730155,5.69453306,176.54,176.51,0.66]
[1752852730321,5.69453306,176.54,176.51,10.66]
[1752852730520,5.69453306,176.54,176.51,22.53035474]
[1752852731030,5.69453306,176.54,176.51,0.66]
[1752852731237,5.69453306,176.54,176.51,22.53035474]
[1752852731636,5.69453306,176.54,176.51,0.66]
[1752852731835,17.5648878,176.54,176.49,21.87035474]
[1752852732039,11.87035474,176.51,176.47,10.66]
[1752852732230,11.87035474,176.5,176.47,10.0]
[1752852732433,11.87035474,176.52,176.49,10.0]
[1752852732941,11.87035474,176.52,176.48,0.66]
[1752852733528,5.66540139,176.51,176.49,0.66]
[1752852733737,5.66540139,176.51,176.47,21.87035474]
[1752852733931,5.66540139,176.51,176.47,22.53035474]
[1752852734142,5.66540139,176.51,176.49,10.0]
[1752852734450,5.66540139,176.51,176.47,12.53035474]
[1752852734651,5.66540139,176.51,176.47,12.59035474]
[1752852734873,5.66540139,176.51,176.47,0.06]
[1752852735037,11.87035474,176.48,176.47,0.06]
[1752852735435,11.87035474,176.48,176.47,10.06]
[1752852735669,17.5367192,176.48,176.47,0.06]
[1752852736148,88.94,176.53,176.47,10.06]
[1752852736450,28.65503871,176.51,176.47,0.06]
[1752852736649,11.87035474,176.48,176.47,0.06]
[1752852736866,28.65503871,176.48,176.47,0.06]
[1752852737177,29.36503871,176.48,176.47,0.06]
[1752852737755,35.03140317,176.48,176.47,0.06]
[1752852738456,16.78468397,176.47,176.43,3.0]
[1752852738657,11.87035474,176.44,176.43,3.0]
[1752852738872,16.78468397,176.45,176.43,3.0]
[1752852739074,28.65503871,176.45,176.43,3.0]
[1752852740062,5.66764905,176.44,176.43,13.0]
[1752852740567,17.53704029,176.47,176.43,13.67]
[1752852740754,22.45136952,176.47,176.44,0.67]
[1752852740934,5.66668555,176.47,176.44,0.67]
[1752852741142,5.66668555,176.47,176.45,0.67]
[1752852741346,7.0,176.46,176.45,10.67]
[1752852741538,7.0,176.46,176.45,10.0]
[1752852741954,7.0,176.46,176.45,22.54035474]
[1752852742252,7.0,176.46,176.45,28.20768259]
[1752852742641,6.28,176.46,176.45,28.20768259]
[1752852742860,4.9,176.46,176.45,28.20768259]
[1752852743269,4.9,176.46,176.45,60.56858259]
[1752852743477,0.03,176.53,176.52,10.0]
[1752852743655,0.03,176.53,176.52,21.87035474]
[1752852744068,0.03,176.53,176.52,27.53543518]
[1752852746673,0.03,176.54,176.52,27.53543518]
[1752852747000,0.03,176.54,176.53,30.56993069]
[1752852747756,0.03,176.54,176.53,18.69957595]
[1752852748055,0.03,176.54,176.53,10.0]
[1752852748371,0.03,176.54,176.49,8.1331]
[1752852748372,12.61035474,176.54,176.49,10.0]
[1752852748554,11.87035474,176.5,176.49,10.0]
[1752852748758,5.6660434,176.49,176.46,10.0]
[1752852749085,11.87035474,176.48,176.45,10.0]
[1752852749394,5.6660434,176.49,176.47,10.0]
[1752852749568,5.6660434,176.49,176.46,10.0]
[1752852749757,5.66480899,176.53,176.48,11.87035474]
[1752852749959,5.66480899,176.53,176.49,21.87035474]
[1752852750277,0.71,176.52,176.49,21.87035474]
[1752852750468,17.56487063,176.54,176.5,10.0]
[1752852750669,18.27487063,176.54,176.5,10.0]
[1752852751076,6.40451589,176.54,176.5,21.87035474]
[1752852751388,5.69455273,176.54,176.53,10.0]
[1752852751593,17.56490747,176.54,176.53,10.0]
[1752852751888,5.69455273,176.54,176.53,10.0]
[1752852752096,0.03,176.54,176.53,10.0]
[1752852752585,12.61035474,176.54,176.51,10.0]
[1752852752791,12.58035474,176.53,176.51,10.0]
[1752852752952,6.37508044,176.52,176.5,10.0]
[1752852753160,18.24543518,176.52,176.5,10.0]
[1752852753506,0.71,176.51,176.5,10.0]
[1752852753806,0.71,176.51,176.49,10.0]
[1752852754154,0.71,176.51,176.5,10.0]
[1752852755353,5.66508044,176.52,176.5,10.0]
[1752852755558,0.71,176.51,176.5,10.0]
[1752852755775,12.58035474,176.51,176.5,10.0]
[1752852756459,0.71,176.51,176.5,10.0]
[1752852756863,0.03,176.54,176.51,10.0]
[1752852757065,0.03,176.54,176.51,21.87035474]
[1752852757989,0.74,176.54,176.51,10.0]
[1752852758383,0.03,176.54,176.53,10.0]
[1752852758594,0.03,176.54,176.53,21.87035474]
[1752852760375,0.03,176.54,176.53,27.53511427]
[1752852760961,0.03,176.54,176.53,21.87035474]
[1752852761367,0.03,176.54,176.53,10.0]
[1752852761560,0.74,176.54,176.53,10.0]
[1752852761765,16.78468397,176.53,176.5,0.06]
[1752852761965,11.87035474,176.51,176.5,0.06]
[1752852762163,17.53575613,176.51,176.5,0.06]
[1752852762372,18.24575613,176.51,176.5,10.06]
[1752852762560,0.71,176.51,176.5,10.06]
[1752852762774,0.71,176.51,176.5,0.06]
[1752852762775,18.24575613,176.51,176.5,0.06]
[1752852762982,16.78468397,176.5,176.46,10.0]
[1752852763157,11.87035474,176.48,176.45,10.0]
[1752852763362,0.71,176.47,176.44,10.0]
[1752852763579,0.71,176.47,176.43,14.87035474]
[1752852763580,12.58035474,176.46,176.43,13.0]
[1752852763782,11.87035474,176.46,176.43,3.0]
[1752852763968,11.87035474,176.45,176.43,3.0]
[1752852764167,5.66732785,176.45,176.44,10.0]
[1752852764381,6.37732785,176.45,176.43,13.0]
[1752852764590,6.37732785,176.45,176.44,10.0]
[1752852764775,0.71,176.45,176.44,10.0]
[1752852764966,6.37732785,176.45,176.43,13.0]
[1752852765167,0.71,176.45,176.44,10.0]
[1752852765679,18.24768259,176.45,176.43,3.0]
[1752852765875,12.55035474,176.44,176.43,3.0]
[1752852766075,0.68,176.44,176.43,3.0]
[1752852766289,5.66706805,176.46,176.44,10.0]
[1752852766495,0.68,176.47,176.44,10.0]
[1752852766665,12.55035474,176.47,176.44,10.0]
[1752852766866,0.68,176.47,176.44,10.0]
[1752852768192,16.78468397,176.52,176.47,15.66668555]
[1752852768366,16.78468397,176.52,176.45,0.07]
[1752852768367,0.68,176.51,176.49,10.0]
[1752852768687,42.78468397,176.49,176.46,10.0]
[1752852768889,12.55035474,176.48,176.45,10.0]
[1752852769201,26.0,176.49,176.46,21.87035474]
[1752852769379,0.68,176.5,176.46,21.87035474]
[1752852769568,43.53543996,176.52,176.47,21.87035474]
[1752852769764,0.68,176.51,176.48,10.0]
[1752852769973,0.68,176.5,176.48,10.0]
[1752852771277,0.68,176.5,176.47,21.87035474]
[1752852771476,26.68,176.52,176.48,21.87035474]
[1752852771682,6.37453319,176.54,176.5,11.87035474]
[1752852771986,0.03,176.54,176.51,11.87035474]
[1752852772188,0.03,176.54,176.53,11.87035474]
[1752852772492,0.03,176.54,176.53,21.87035474]
[1752852773503,0.03,176.54,176.53,10.0]
[1752852773693,12.58035474,176.54,176.51,10.0]
[1752852773900,0.68,176.53,176.5,10.0]
[1752852774088,0.03,176.54,176.51,10.0]
[1752852774272,0.03,176.54,176.52,10.0]
[1752852774592,18.21540927,176.53,176.49,10.0]
[1752852774889,11.87035474,176.51,176.49,10.0]
[1752852775097,0.68,176.51,176.49,10.0]
[1752852775394,18.24488244,176.54,176.5,10.0]
[1752852775584,17.46468397,176.53,176.49,10.0]
[1752852775899,12.55035474,176.52,176.5,10.0]
[1752852776273,12.55035474,176.52,176.49,10.0]
[1752852776597,0.68,176.52,176.49,10.0]
[1752852776798,18.21544766,176.52,176.49,10.0]
[1752852776976,18.21544766,176.52,176.5,10.0]
[1752852777176,12.55035474,176.51,176.48,10.0]
[1752852777393,0.68,176.51,176.47,10.0]
[1752852777598,0.68,176.51,176.49,10.0]
[1752852777599,0.68,176.5,176.49,10.0]
[1752852777979,5.66509292,176.52,176.49,10.0]
[1752852778196,18.21544766,176.52,176.49,10.0]
[1752852778402,17.53544766,176.52,176.49,10.0]
[1752852778701,12.55035474,176.51,176.49,10.0]
[1752852778885,17.53587374,176.51,176.49,10.0]
[1752852779080,18.21514276,176.53,176.49,10.0]
[1752852779479,12.55035474,176.52,176.48,10.0]
[1752852779678,12.55035474,176.52,176.49,10.0]
[1752852779875,0.68,176.51,176.49,10.0]
[1752852780302,11.87035474,176.52,176.49,10.0]
[1752852780484,12.55035474,176.52,176.49,10.0]
[1752852780883,0.68,176.51,176.49,10.0]
[1752852781085,0.68,176.5,176.48,10.0]
[1752852781489,0.68,176.5,176.49,10.0]
[1752852782186,11.87035474,176.52,176.49,10.0]
[1752852782385,12.55035474,176.52,176.49,10.0]
[1752852782800,0.68,176.51,176.49,10.0]
[1752852783100,17.53517387,176.53,176.49,10.0]
[1752852783306,18.21517387,176.53,176.51,10.0]
[1752852783509,11.87035474,176.52,176.51,10.0]
[1752852783694,12.55035474,176.52,176.51,10.0]
[1752852784393,6.34511305,176.52,176.5,10.0]
[1752852784804,117.53503871,176.51,176.44,10.0]
[1752852785008,11.87035474,176.45,176.44,10.0]
[1752852785519,29.33503871,176.45,176.43,3.0]
[1752852785693,29.33503871,176.45,176.43,13.0]
[1752852785694,0.68,176.44,176.43,13.0]
[1752852786020,12.55035474,176.44,176.43,13.0]
[1752852786623,11.87035474,176.45,176.43,13.0]
[1752852786820,12.55035474,176.45,176.44,10.0]
[1752852787113,0.68,176.49,176.44,21.87035474]
[1752852787294,17.53617434,176.5,176.46,10.0]
[1752852787490,18.21617434,176.5,176.46,10.0]
[1752852787913,12.55035474,176.5,176.46,10.0]
[1752852788100,29.33503871,176.5,176.48,10.0]
[1752852788617,0.68,176.49,176.48,10.0]
[1752852788808,0.68,176.49,176.47,10.0]
[1752852789014,28.65503871,176.49,176.46,10.0]
[1752852789192,0.68,176.48,176.46,10.0]
[1752852789395,0.68,176.48,176.45,10.0]
[1752852789598,0.68,176.48,176.46,10.0]
[1752852789797,12.55035474,176.47,176.44,10.0]
[1752852790008,12.55035474,176.46,176.45,10.0]
[1752852790207,12.55035474,176.46,176.44,10.0]
[1752852790426,0.68,176.45,176.44,10.0]
[1752852790922,16.78468397,176.48,176.45,10.0]
[1752852790923,12.55035474,176.47,176.45,10.0]
[1752852791122,5.66643364,176.48,176.44,10.0]
[1752852791327,22.45079426,176.49,176.46,10.0]
[1752852791538,22.45079426,176.49,176.46,21.87035474]
[1752852791707,23.13079426,176.49,176.46,21.87035474]
[1752852792353,22.45079426,176.49,176.45,10.0]
[1752852792639,22.45079426,176.49,176.46,10.0]
[1752852793016,0.68,176.48,176.46,10.0]
[1752852793319,22.45079426,176.49,176.46,11.87035474]
[1752852793521,23.13079426,176.49,176.46,21.87035474]
[1752852793845,9.78813408,176.51,176.46,21.87035474]
[1752852793846,9.78813408,176.51,176.47,10.0]
[1752852794046,9.78813408,176.51,176.5,10.0]
[1752852794425,9.78813408,176.51,176.5,21.87035474]
[1752852795638,0.71,176.54,176.52,10.0]
[1752852795639,0.03,176.54,176.52,10.0]
[1752852795818,0.03,176.54,176.53,21.87035474]
[1752852796733,0.72,176.54,176.52,10.0]
[1752852796929,0.72,176.54,176.53,10.0]
[1752852797324,0.03,176.54,176.53,10.0]
[1752852797724,0.03,176.54,176.53,11.87035474]
[1752852797924,0.03,176.54,176.53,21.87035474]
[1752852798525,0.03,176.54,176.53,27.60511427]
[1752852799243,0.03,176.54,176.53,10.0]
[1752852799456,0.03,176.54,176.53,21.87035474]
[1752852801429,0.72,176.54,176.53,10.0]
[1752852801827,0.03,176.54,176.53,10.0]
[1752852802242,0.03,176.54,176.53,21.87035474]
[1752852802440,0.03,176.54,176.53,10.0]
[1752852802653,0.03,176.54,176.53,21.87035474]
[1752852803029,0.72,176.54,176.52,10.0]
[1752852803331,6.38469791,176.54,176.53,10.0]
[1752852804237,0.03,176.54,176.53,21.87035474]
[1752852805131,0.03,176.54,176.53,21.94035474]
[1752852805332,0.03,176.54,176.53,27.60511427]
[1752852805847,0.03,176.55,176.53,41.04836901]
[1752852806048,0.03,176.55,176.54,34.37715334]
[1752852806258,0.03,176.57,176.56,42.2183]
[1752852806629,0.03,176.57,176.56,54.15865474]
[1752852807457,0.03,176.57,176.56,59.82245174]
[1752852807964,0.03,176.57,176.56,33.82245174]
[1752852808164,5.66018816,176.68,176.58,36.0]
[1752852808370,5.66018816,176.68,176.58,47.87035474]
[1752852808568,5.66033215,176.67,176.58,47.87035474]
[1752852808753,5.66063643,176.66,176.58,47.94035474]
[1752852809273,0.69,176.65,176.58,47.87035474]
[1752852809451,0.03,176.62,176.58,47.94035474]
[1752852809652,0.03,176.62,176.58,53.60351025]
[1752852810267,0.03,176.62,176.58,54.1698258]
[1752852810573,0.03,176.62,176.59,21.94035474]
[1752852810760,0.03,176.62,176.59,21.87035474]
[1752852811165,0.03,176.62,176.59,10.0]
[1752852811384,0.03,176.62,176.59,21.87035474]
[1752852811583,0.03,176.62,176.59,27.53318955]
[1752852811756,0.03,176.62,176.59,15.66283481]
[1752852812078,0.03,176.62,176.59,10.0]
[1752852812263,0.03,176.62,176.59,21.87035474]
[1752852812748,0.03,176.62,176.59,21.94035474]
[1752852812954,0.03,176.62,176.59,27.60318955]
[1752852813362,0.03,176.62,176.6,21.87035474]
[1752852813658,0.03,176.62,176.6,27.60286889]
[1752852814477,0.03,176.62,176.6,15.73251415]
[1752852814676,0.03,176.62,176.6,27.60286889]
[1752852814858,0.03,176.62,176.6,53.53286889]
[1752852815060,0.03,176.62,176.6,47.87035474]
[1752852815259,0.03,176.62,176.6,21.87035474]
[1752852815777,0.03,176.62,176.6,47.87035474]
[1752852816351,0.72,176.61,176.6,21.87035474]
[1752852816959,0.72,176.61,176.59,10.0]
[1752852817365,0.69,176.6,176.59,10.0]
[1752852817979,0.69,176.6,176.58,10.0]
[1752852818180,22.4769276,176.61,176.6,10.0]
[1752852818366,1.5,176.59,176.58,10.0]
[1752852818874,2.19,176.59,176.58,10.0]
[1752852820075,1.5,176.59,176.58,27.53351025]
[1752852820291,0.03,176.61,176.6,10.0]
[1752852820455,0.03,176.61,176.6,21.87035474]
[1752852821558,0.03,176.61,176.6,21.94035474]
[1752852821758,0.03,176.61,176.6,27.60286889]
[1752852823491,0.03,176.61,176.6,27.53286889]
[1752852826117,0.03,176.61,176.6,27.60286889]
[1752852826884,0.03,176.65,176.64,10.0]
[1752852827094,0.03,176.65,176.64,33.74070948]
[1752852827295,0.03,176.65,176.64,33.81070948]
[1752852827494,0.03,176.65,176.64,27.60158662]
[1752852828205,0.03,176.65,176.64,39.47194136]
[1752852828585,0.72,176.72,176.71,10.0]
[1752852829015,0.72,176.72,176.71,21.87035474]
[1752852829180,0.72,176.72,176.71,10.0]
[1752852829386,6.37866908,176.72,176.71,10.0]
[1752852829611,16.78468397,176.71,176.7,10.0]
[1752852829781,0.72,176.71,176.69,10.0]
[1752852829981,12.59035474,176.71,176.69,10.0]
[1752852830206,12.59035474,176.7,176.68,9.28]
[1752852830512,12.59035474,176.69,176.68,9.28]
[1752852830881,12.59035474,176.69,176.66,9.28]
[1752852831107,0.72,176.68,176.66,9.28]
[1752852831289,28.65503871,176.7,176.66,9.28]
[1752852831613,0.72,176.67,176.66,9.28]
[1752852831808,22.44420874,176.7,176.68,9.28]
[1752852831986,0.72,176.69,176.68,9.28]
[1752852832379,0.72,176.69,176.67,9.28]
[1752852832689,34.31456348,176.7,176.68,9.28]
[1752852833099,16.78468397,176.7,176.69,9.28]
[1752852833308,34.31434827,176.7,176.68,9.28]
[1752852833804,0.72,176.69,176.68,9.28]
[1752852834486,0.72,176.69,176.66,21.15035474]
[1752852834687,0.72,176.69,176.66,9.28]
[1752852835188,16.78468397,176.67,176.66,9.28]
[1752852835393,17.50468397,176.67,176.66,9.28]
[1752852835625,17.50468397,176.67,176.65,9.28]
[1752852835794,17.50468397,176.66,176.65,9.28]
[1752852836192,30.90243871,176.66,176.65,9.28]
[1752852836490,19.03208397,176.66,176.65,9.28]
[1752852837085,30.90243871,176.66,176.65,9.28]
[1752852837515,36.56302967,176.66,176.63,9.28]
[1752852837710,35.84302967,176.66,176.65,9.28]
[1752852838127,35.84302967,176.66,176.62,9.28]
[1752852838334,35.84302967,176.66,176.65,9.28]
[1752852838716,1.5274,176.66,176.65,9.28]
[1752852838932,6.38059096,176.66,176.64,9.28]
[1752852839140,18.36748397,176.7,176.69,9.28]
[1752852839339,17.50468397,176.7,176.69,9.28]
[1752852839544,0.72,176.7,176.68,9.28]
[1752852839716,17.50468397,176.7,176.68,9.28]
[1752852839917,0.72,176.69,176.68,9.28]
[1752852840215,29.37503871,176.69,176.67,9.28]
[1752852840427,16.78468397,176.67,176.66,9.28]
[1752852840622,29.37503871,176.67,176.6,9.28]
[1752852840827,11.87035474,176.61,176.57,9.28]
[1752852841126,11.87035474,176.59,176.56,9.28]
[1752852841442,16.78468397,176.58,176.52,9.34]
[1752852841739,20.54216684,176.57,176.52,0.06]
[1752852841932,11.87035474,176.54,176.52,0.06]
[1752852842124,17.50468397,176.56,176.53,9.28]
[1752852842316,17.50468397,176.56,176.54,9.28]
[1752852842636,5.66347624,176.57,176.54,9.28]
[1752852842637,17.50468397,176.55,176.54,9.28]
[1752852843035,17.50468397,176.55,176.53,9.28]
[1752852843230,29.37503871,176.54,176.52,0.06]
[1752852843418,29.37503871,176.54,176.53,9.28]
[1752852843619,17.50468397,176.54,176.52,0.06]
[1752852843827,11.87035474,176.57,176.53,9.28]
[1752852844053,17.50468397,176.56,176.53,9.28]
[1752852844224,0.72,176.55,176.54,9.28]
[1752852844844,19.10071613,176.59,176.54,21.15035474]
[1752852845049,0.72,176.58,176.56,9.28]
[1752852845238,17.50468397,176.57,176.55,9.28]
[1752852845439,16.78468397,176.55,176.52,9.34]
[1752852845648,0.72,176.54,176.52,9.34]
[1752852846044,17.50468397,176.54,176.52,9.34]
[1752852846643,17.50468397,176.54,176.53,9.28]
[1752852847423,5.66386478,176.56,176.53,9.28]
[1752852847746,5.66349863,176.57,176.53,9.28]
[1752852848053,17.50468397,176.56,176.54,9.28]
[1752852848546,16.78468397,176.58,176.56,9.28]
[1752852848747,0.72,176.59,176.57,11.87035474]
[1752852848948,0.72,176.58,176.57,21.15035474]
[1752852849455,0.72,176.58,176.57,9.28]
[1752852849750,16.78468397,176.57,176.55,9.28]
[1752852849948,17.50468397,176.57,176.56,9.28]
[1752852850147,17.50468397,176.57,176.55,21.15035474]
[1752852850328,0.72,176.59,176.56,21.15035474]
[1752852850638,0.72,176.59,176.53,0.68]
[1752852850639,6.38285398,176.59,176.57,21.15035474]
[1752852850952,17.50468397,176.58,176.56,9.28]
[1752852851142,17.50468397,176.58,176.52,0.06]
[1752852851143,0.72,176.57,176.55,9.28]
[1752852851333,28.65503871,176.58,176.55,9.28]
[1752852851643,17.50468397,176.56,176.55,9.28]
[1752852851834,16.78468397,176.55,176.52,9.34]
[1752852852041,0.72,176.54,176.52,9.34]
[1752852852241,0.72,176.53,176.52,0.06]
[1752852852539,0.72,176.53,176.52,9.34]
[1752852852945,0.72,176.55,176.52,9.34]
[1752852853140,16.78468397,176.54,176.52,9.34]
[1752852853339,17.50468397,176.54,176.52,9.34]
[1752852853539,17.50468397,176.53,176.52,9.34]
[1752852853742,23.1694435,176.53,176.52,9.34]
[1752852853936,17.50468397,176.53,176.52,9.34]
[1752852854141,16.78468397,176.53,176.52,0.06]
[1752852854361,16.78468397,176.53,176.52,9.34]
[1752852854748,16.78468397,176.53,176.52,0.06]
[1752852855055,23.1694435,176.53,176.52,0.06]
[1752852855354,35.03979824,176.53,176.52,0.06]
[1752852856435,23.1694435,176.53,176.52,0.06]
[1752852856652,35.03979824,176.53,176.52,0.06]
[1752852857550,35.03979824,176.53,176.48,3.0]
[1752852857551,16.78468397,176.52,176.48,3.0]
[1752852857754,28.65503871,176.49,176.48,3.0]
[1752852857949,29.36503871,176.49,176.48,12.28]
[1752852858256,17.49468397,176.49,176.48,12.28]
[1752852858558,16.78468397,176.49,176.48,12.28]
[1752852858768,16.78468397,176.53,176.49,9.28]
[1752852858933,16.78468397,176.53,176.51,21.15035474]
[1752852859645,0.71,176.52,176.5,21.15035474]
[1752852859847,17.49468397,176.51,176.5,9.28]
[1752852860462,16.78468397,176.53,176.51,9.28]
[1752852860933,16.78468397,176.53,176.5,9.28]
[1752852861138,0.71,176.52,176.5,9.28]
[1752852861350,0.71,176.51,176.49,9.28]
[1752852861662,0.71,176.51,176.48,3.0]
[1752852861663,11.87035474,176.52,176.5,9.28]
[1752852861869,5.6652157,176.52,176.5,9.28]
[1752852862167,16.78468397,176.53,176.5,21.15035474]
[1752852862460,0.71,176.54,176.51,21.15035474]
[1752852862759,0.71,176.54,176.51,9.28]
[1752852862760,16.78468397,176.53,176.51,9.28]
[1752852863668,0.71,176.53,176.51,9.28]
[1752852864263,0.71,176.53,176.5,21.15035474]
[1752852864464,0.71,176.53,176.51,9.28]
[1752852865044,6.37483031,176.53,176.51,9.28]
[1752852865253,0.71,176.52,176.51,9.28]
[1752852865455,16.78468397,176.52,176.51,9.28]
[1752852865660,17.49468397,176.52,176.5,9.28]
[1752852865853,17.49468397,176.52,176.51,9.28]
[1752852866041,23.15976441,176.52,176.51,9.28]
[1752852866377,35.03011915,176.52,176.48,12.28]
[1752852866576,16.78468397,176.5,176.48,12.28]
[1752852866874,17.49468397,176.5,176.48,12.28]
[1752852867172,16.78468397,176.51,176.49,9.28]
[1752852867372,16.78468397,176.51,176.5,9.28]
[1752852867578,17.49468397,176.51,176.49,9.28]
[1752852867763,12.58035474,176.5,176.48,3.0]
[1752852867964,34.32108211,176.49,176.48,3.0]
[1752852868177,23.16072737,176.49,176.48,12.28]
[1752852868370,17.49468397,176.49,176.48,12.28]
[1752852868568,16.78468397,176.49,176.48,12.28]
[1752852869186,16.78468397,176.49,176.48,3.0]
[1752852869393,17.49468397,176.49,176.48,12.28]
[1752852869587,23.16072737,176.49,176.48,12.28]
[1752852869798,23.16072737,176.49,176.48,3.0]
[1752852870080,23.16072737,176.49,176.48,12.28]
[1752852870384,0.71,176.51,176.48,24.15035474]
[1752852870584,88.2,176.52,176.5,21.15035474]
[1752852871083,104.98468397,176.52,176.5,11.87035474]
[1752852871266,105.69468397,176.52,176.49,9.28]
[1752852871460,111.3598132,176.52,176.5,11.87035474]
[1752852871661,105.69468397,176.52,176.5,21.15035474]
[1752852872089,105.69468397,176.52,176.5,9.28]
[1752852872385,17.49468397,176.51,176.5,9.28]
[1752852872589,17.49468397,176.51,176.49,9.28]
[1752852872803,0.03,176.53,176.5,9.28]
[1752852872963,0.03,176.53,176.52,21.15035474]
[1752852873470,0.03,176.53,176.51,21.15035474]
[1752852873660,0.03,176.53,176.52,9.28]
[1752852874390,0.03,176.53,176.52,21.15035474]
[1752852874693,0.03,176.53,176.52,27.51543518]
[1752852874984,0.03,176.53,176.52,21.15035474]
[1752852877676,0.03,176.53,176.52,21.85035474]
[1752852877993,0.03,176.53,176.52,27.51543518]
[1752852878789,9.85244199,176.6,176.59,9.28]
[1752852878987,9.85244199,176.6,176.59,21.15035474]
[1752852879501,27.34712596,176.6,176.59,9.28]
[1752852879678,27.34712596,176.6,176.52,45.82778155]
[1752852879679,16.78468397,176.59,176.58,9.28]
[1752852879864,16.78468397,176.58,176.57,9.28]
[1752852880064,35.02819422,176.58,176.57,9.28]
[1752852880473,35.02819422,176.58,176.55,9.28]
[1752852880686,16.78468397,176.55,176.54,9.28]
[1752852880862,17.49468397,176.55,176.54,9.28]
[1752852881594,0.71,176.57,176.54,9.28]
[1752852881776,0.71,176.57,176.55,9.28]
[1752852881974,29.36503871,176.57,176.56,9.28]
[1752852882300,16.78468397,176.56,176.54,9.28]
[1752852882501,29.36503871,176.56,176.54,9.28]
[1752852882703,29.36503871,176.56,176.55,9.28]
[1752852882912,17.49468397,176.56,176.55,9.28]
[1752852883702,17.53357739,176.58,176.54,9.28]
[1752852883910,17.53357739,176.58,176.52,5.66482086]
[1752852883911,16.78468397,176.57,176.56,9.28]
[1752852884288,9.85244199,176.6,176.58,9.28]
[1752852884687,16.78468397,176.61,176.57,21.15035474]